bitfinex/quotes_BTCUSD_20260104
["timestamp","ask_amount","ask_price","bid_price","bid_amount"]
[1767508175346,0.02192,91517.0,91509.0,0.04618675]
[1767508175509,0.01092681,91518.0,91509.0,0.04618675]
[1767508175685,0.01092669,91519.0,91516.0,0.04618675]
[1767508175868,0.01082669,91519.0,91516.0,0.04618675]
[1767508176508,0.05463406,91518.0,91516.0,0.04518775]
[1767508176813,0.0003006,91517.0,91508.0,0.05711475]
[1767508177015,0.01092693,91517.0,91508.0,0.05711475]
[1767508179296,0.01092693,91517.0,91508.0,0.04618675]
[1767508179920,0.01092705,91516.0,91508.0,0.04618675]
[1767508180126,0.01092693,91517.0,91508.0,0.04618675]
[1767508180325,0.01092705,91516.0,91508.0,0.04618675]
[1767508181263,0.0109274,91513.0,91508.0,0.04588675]
[1767508181497,0.01092728,91514.0,91508.0,0.04588675]
[1767508181655,0.01092752,91512.0,91508.0,0.04588675]
[1767508182001,0.0109274,91513.0,91508.0,0.04588675]
[1767508182405,0.01092752,91512.0,91508.0,0.04588675]
[1767508182810,0.01092717,91515.0,91508.0,0.04588675]
[1767508183034,0.01092705,91516.0,91508.0,0.04588675]
[1767508183636,0.01092717,91515.0,91508.0,0.04588675]
[1767508184371,0.020928,91508.0,91500.0,1.31202867]
[1767508184572,0.01092812,91507.0,91500.0,1.31202867]
[1767508184769,0.01092824,91506.0,91500.0,1.31202867]
[1767508184947,0.01092812,91507.0,91500.0,1.31202867]
[1767508185149,0.01092824,91506.0,91500.0,1.31202867]
[1767508185446,0.0109286,91503.0,91500.0,1.29010867]
[1767508185977,0.01092836,91505.0,91500.0,1.29010867]
[1767508186123,0.05464242,91504.0,91503.0,0.000999]
[1767508186324,0.05464361,91502.0,91500.0,1.29010867]
[1767508186786,0.05464361,91502.0,91500.0,1.28910967]
[1767508191526,0.05464361,91502.0,91500.0,1.28900964]
[1767508192609,0.05464361,91502.0,91500.0,1.28890961]
[1767508198252,0.05464361,91502.0,91500.0,0.79003578]
[1767508198437,0.05464361,91502.0,91500.0,0.59432744]
[1767508198638,0.05464361,91502.0,91500.0,0.58882744]
[1767508198889,0.05464361,91502.0,91500.0,0.56606336]
[1767508199091,0.02282795,91501.0,91500.0,0.54323541]
[1767508199254,0.05464361,91502.0,91500.0,0.54299129]
[1767508200274,0.05464361,91502.0,91500.0,0.49379468]
[1767508200614,0.05464361,91502.0,91500.0,0.49359462]
[1767508201057,0.05464361,91502.0,91500.0,0.49349462]
[1767508201263,0.05464361,91502.0,91500.0,0.44429801]
[1767508201682,0.05464361,91502.0,91500.0,0.41689401]
[1767508201874,0.05464361,91502.0,91500.0,0.41128594]
[1767508202234,0.02192,91505.0,91485.0,0.04799131]
[1767508202235,0.01093039,91488.0,91485.0,0.04799131]
[1767508202438,0.06558647,91483.0,91473.0,0.04799131]
[1767508202639,0.01093063,91486.0,91472.0,0.0001524]
[1767508202640,0.01093087,91484.0,91483.0,0.0011909]
[1767508202835,0.01093063,91486.0,91483.0,0.00129833]
[1767508203042,0.01093063,91486.0,91483.0,0.00029933]
[1767508203248,0.06558427,91486.0,91483.0,0.00029933]
[1767508203828,0.0654941,91486.0,91483.0,0.00029933]
[1767508204051,0.05465429,91485.0,91483.0,0.00029933]
[1767508205164,0.02192,91487.0,91483.0,0.00029933]
[1767508205365,0.21859227,91495.0,91483.0,0.00029933]
[1767508205366,0.02192,91494.0,91487.0,0.04789128]
[1767508205573,0.02192,91494.0,91487.0,0.05882179]
[1767508205770,0.00904626,91494.0,91487.0,0.05882179]
[1767508206092,0.00904626,91494.0,91488.0,0.01093039]
[1767508206287,0.00904626,91494.0,91487.0,0.05882179]
[1767508207719,0.00904626,91494.0,91487.0,0.04789128]
[1767508207931,0.00904626,91494.0,91487.0,0.05882179]
[1767508208138,0.00904626,91494.0,91486.0,0.01093063]
[1767508208288,0.01092979,91493.0,91483.0,0.04829064]
[1767508209204,0.01997593,91494.0,91483.0,0.05922163]
[1767508209413,0.01092979,91493.0,91483.0,0.04829064]
[1767508209796,0.01997593,91494.0,91483.0,0.04829064]
[1767508209997,0.01092979,91493.0,91483.0,0.04829064]
[1767508210332,0.01092991,91492.0,91483.0,0.04829064]
[1767508211014,0.01092979,91493.0,91483.0,0.04829064]
[1767508211407,0.01997593,91494.0,91483.0,0.05922163]
[1767508211662,0.00904626,91494.0,91483.0,0.05922163]
[1767508211870,0.00904626,91494.0,91484.0,0.01093087]
[1767508212071,0.01997593,91494.0,91483.0,0.05922163]
[1767508212674,0.01092979,91493.0,91483.0,0.04829064]
[1767508214019,0.01092991,91492.0,91483.0,0.04829064]
[1767508214220,0.01092979,91493.0,91483.0,0.04829064]
[1767508214423,0.01997593,91494.0,91483.0,0.05922163]
[1767508214814,0.01092979,91493.0,91483.0,0.04829064]
[1767508215462,0.00904626,91494.0,91485.0,0.01093075]
[1767508215882,0.00904626,91494.0,91484.0,0.01093087]
[1767508216561,0.01997593,91494.0,91483.0,0.05922163]
[1767508216783,0.01997593,91494.0,91484.0,0.01093087]
[1767508217184,0.02192,91496.0,91484.0,0.01093087]
[1767508217364,0.01092955,91495.0,91484.0,0.01093087]
[1767508217581,0.35719129,91518.0,91483.0,0.05922163]
[1767508217582,0.01092848,91504.0,91493.0,0.04799131]
[1767508217764,0.12655949,91501.0,91493.0,0.04799131]
[1767508219161,0.05463965,91509.0,91495.0,0.04799131]
[1767508219355,0.13748666,91515.0,91504.0,0.04799131]
[1767508219551,0.13748666,91515.0,91503.0,0.0109286]
[1767508219552,0.01092728,91514.0,91505.0,0.04794726]
[1767508219749,0.0109274,91513.0,91505.0,0.04765854]
[1767508220099,0.0108274,91513.0,91501.0,0.01092884]
[1767508220304,0.0497197,91512.0,91502.0,0.01092872]
[1767508220509,0.06064722,91512.0,91501.0,0.01092884]
[1767508221580,0.06064722,91512.0,91502.0,0.01092872]
[1767508221781,0.0497197,91512.0,91502.0,0.01092872]
[1767508221983,0.0497197,91512.0,91504.0,0.01092848]
[1767508222159,0.0497197,91512.0,91502.0,0.01092872]
[1767508223347,0.0497197,91512.0,91503.0,0.0109286]
[1767508223549,0.0497197,91512.0,91503.0,0.01078424]
[1767508223949,0.00039748,91516.0,91511.0,0.01092764]
[1767508224177,0.00039748,91516.0,91511.0,0.01078329]
[1767508224383,0.00039748,91516.0,91512.0,0.01092752]
[1767508224567,0.00039748,91516.0,91511.0,0.01078329]
[1767508224770,0.00039748,91516.0,91510.0,0.01092776]
[1767508224970,0.00039748,91516.0,91511.0,0.01092764]
[1767508225196,0.00039748,91516.0,91512.0,0.01092752]
[1767508225336,0.01092621,91523.0,91513.0,0.04799131]
[1767508225531,0.01092645,91521.0,91513.0,0.04799131]
[1767508225737,0.01092633,91522.0,91513.0,0.04799131]
[1767508225933,0.01092645,91521.0,91513.0,0.04799131]
[1767508226171,0.01092633,91522.0,91513.0,0.04799131]
[1767508226375,0.01092621,91523.0,91513.0,0.04799131]
[1767508227150,0.01092609,91524.0,91513.0,0.05891871]
[1767508227605,0.01092633,91522.0,91513.0,0.04799131]
[1767508227806,0.01092609,91524.0,91513.0,0.04799131]
[1767508227984,0.18118769,91528.0,91512.0,0.01092752]
[1767508227985,0.01092561,91528.0,91517.0,0.04799131]
[1767508228186,0.01092573,91527.0,91518.0,0.04799131]
[1767508228489,0.01092537,91530.0,91518.0,0.01092681]
[1767508228809,0.01092549,91529.0,91518.0,0.01092681]
[1767508229011,0.06064496,91531.0,91520.0,0.01092657]
[1767508229169,0.01092537,91530.0,91518.0,0.04799131]
[1767508229380,0.01092537,91530.0,91518.0,0.05891812]
[1767508229910,0.01092549,91529.0,91518.0,0.04784697]
[1767508230506,0.01092561,91528.0,91518.0,0.04784697]
[1767508230923,0.01092537,91530.0,91518.0,0.05877378]
[1767508231106,0.01092549,91529.0,91518.0,0.04784697]
[1767508231309,0.01092537,91530.0,91519.0,0.04663746]
[1767508231508,0.01092549,91529.0,91519.0,0.04663746]
[1767508231928,0.01092561,91528.0,91519.0,0.04663746]
[1767508232156,0.01092549,91529.0,91519.0,0.04663746]
[1767508232477,0.01092549,91529.0,91517.0,0.03284693]
[1767508233418,0.01092561,91528.0,91517.0,0.03284693]
[1767508233637,0.01092561,91528.0,91518.0,0.01092681]
[1767508233838,0.01092549,91529.0,91518.0,0.01092681]
[1767508234037,0.01092561,91528.0,91517.0,0.03284693]
[1767508234816,0.01092549,91529.0,91518.0,0.01092681]
[1767508235022,0.01092561,91528.0,91517.0,0.03284693]
[1767508235429,0.01092561,91528.0,91518.0,0.01092681]
[1767508235721,0.01092561,91528.0,91517.0,0.03284693]
[1767508235921,0.01092549,91529.0,91518.0,0.01092681]
[1767508236126,0.04653455,91537.0,91522.0,0.01092633]
[1767508236349,0.04653455,91537.0,91527.0,0.01092573]
[1767508236350,0.12655949,91536.0,91527.0,0.01092573]
[1767508236544,0.12655949,91536.0,91527.0,0.01078141]
[1767508236773,0.12655949,91536.0,91527.0,0.05763659]
[1767508237397,0.12655949,91536.0,91527.0,0.04671086]
[1767508237804,0.12655949,91536.0,91528.0,0.01092561]
[1767508238262,0.12655949,91536.0,91527.0,0.05763659]
[1767508238427,0.12655949,91536.0,91529.0,0.01092549]
[1767508238796,0.0001524,91540.0,91534.0,0.0109249]
[1767508239000,0.0001524,91540.0,91532.0,0.01092514]
[1767508239202,0.01092382,91543.0,91531.0,0.04671086]
[1767508239438,0.01092382,91543.0,91531.0,0.05763612]
[1767508239632,0.01092382,91543.0,91531.0,0.04671086]
[1767508239979,0.02192,91548.0,91531.0,0.04671086]
[1767508239980,0.01092335,91547.0,91536.0,0.05763552]
[1767508240136,0.01092347,91546.0,91536.0,0.04671086]
[1767508240334,0.01092335,91547.0,91536.0,0.05763552]
[1767508240681,0.01092347,91546.0,91536.0,0.04671086]
[1767508241481,0.02192,91552.0,91537.0,0.04671086]
[1767508241637,0.01092311,91549.0,91539.0,0.04666579]
[1767508241870,0.01092335,91547.0,91539.0,0.04566679]
[1767508242074,0.01092323,91548.0,91539.0,0.04566679]
[1767508242688,0.01092323,91548.0,91536.0,0.01092466]
[1767508242875,0.01092347,91546.0,91539.0,0.00010743]
[1767508243394,0.01092323,91548.0,91539.0,0.00010743]
[1767508243776,0.01092335,91547.0,91539.0,0.00010743]
[1767508245049,0.05461591,91549.0,91539.0,0.00010743]
[1767508245197,0.01092335,91547.0,91539.0,0.00010743]
[1767508245903,0.06553902,91549.0,91539.0,0.00010743]
[1767508246207,0.01092335,91547.0,91539.0,0.00010743]
[1767508246848,0.01092347,91546.0,91539.0,0.00010743]
[1767508247239,0.01092335,91547.0,91539.0,0.00010743]
[1767508247612,0.01092347,91546.0,91539.0,0.00010743]
[1767508247871,0.01092335,91547.0,91539.0,0.00010743]
[1767508248765,0.01092335,91547.0,91536.0,0.01092466]
[1767508249091,0.01092335,91547.0,91536.0,0.01103219]
[1767508249266,0.01092347,91546.0,91536.0,0.00010753]
[1767508249412,0.01092335,91547.0,91536.0,0.01103219]
[1767508250166,0.01092335,91547.0,91537.0,0.01092454]
[1767508250309,0.01092323,91548.0,91537.0,0.01092454]
[1767508252879,0.01092358,91545.0,91534.0,0.02192]
[1767508253078,0.0109237,91544.0,91534.0,0.02202759]
[1767508253238,0.01092382,91543.0,91534.0,0.02202759]
[1767508253443,0.0109237,91544.0,91534.0,0.02202759]
[1767508254070,0.01092382,91543.0,91534.0,0.02202759]
[1767508254480,0.0109237,91544.0,91534.0,0.02202759]
[1767508256332,0.05745813,91545.0,91534.0,0.03295249]
[1767508256818,0.04653455,91549.0,91545.0,0.000999]
[1767508257111,0.05745766,91549.0,91535.0,0.05462391]
[1767508257314,0.04653455,91549.0,91532.0,0.21850055]
[1767508257478,0.04653455,91549.0,91537.0,0.05427256]
[1767508257673,0.04653455,91549.0,91539.0,0.0109243]
[1767508257901,0.0001524,91559.0,91549.0,0.000999]
[1767508258096,0.05476241,91559.0,91550.0,0.04671086]
[1767508258307,0.01092239,91555.0,91550.0,0.04671086]
[1767508258508,0.01092251,91554.0,91550.0,0.04671086]
[1767508258711,0.01092227,91556.0,91550.0,0.04671086]
[1767508259473,0.01092203,91558.0,91550.0,0.04671086]
[1767508259674,0.01092215,91557.0,91550.0,0.03943633]
[1767508259874,0.01092227,91556.0,91550.0,0.03943633]
[1767508260512,0.05476241,91559.0,91550.0,0.03943633]
[1767508260513,0.05460858,91561.0,91556.0,0.000999]
[1767508260871,0.0293613,91576.0,91556.0,0.000999]
[1767508260872,0.06552383,91570.0,91557.0,0.04599153]
[1767508261071,0.02188,91572.0,91557.0,0.04599153]
[1767508261072,0.01092096,91567.0,91557.0,0.04599153]
[1767508261224,0.01092084,91568.0,91557.0,0.05691368]
[1767508261633,0.05460358,91570.0,91561.0,0.04599153]
[1767508261634,0.0109206,91570.0,91561.0,0.04599153]
[1767508261839,0.01092084,91568.0,91561.0,0.04599153]
[1767508262087,0.01092084,91568.0,91554.0,0.01092251]
[1767508262088,0.01014499,91561.0,91550.0,0.01092299]
[1767508262263,0.01092191,91559.0,91551.0,0.02188]
[1767508262440,0.01092203,91558.0,91551.0,0.02188]
[1767508262645,0.01092191,91559.0,91551.0,0.02188]
[1767508263263,0.01092144,91563.0,91559.0,0.000854]
[1767508263624,0.13748069,91565.0,91559.0,0.000854]
[1767508263799,0.13748069,91565.0,91552.0,0.11152799]
[1767508264349,0.01092132,91564.0,91553.0,0.05691416]
[1767508264573,0.01092132,91564.0,91554.0,0.01092251]
[1767508264776,0.01092132,91564.0,91553.0,0.05691416]
[1767508265100,0.01092144,91563.0,91553.0,0.05691416]
[1767508265529,0.01092132,91564.0,91553.0,0.05691416]
[1767508265821,0.01092144,91563.0,91553.0,0.04599153]
[1767508266015,0.01092156,91562.0,91553.0,0.04599153]
[1767508266317,0.01092132,91564.0,91553.0,0.04599153]
[1767508266472,0.0109206,91570.0,91562.0,0.000854]
[1767508266897,0.01092072,91569.0,91561.0,0.04599153]
[1767508267086,0.01092072,91569.0,91558.0,0.01092203]
[1767508267087,0.02188,91572.0,91563.0,0.04599153]
[1767508267495,0.00727453,91571.0,91562.0,0.06552884]
[1767508267697,0.02188,91572.0,91571.0,0.000854]
[1767508267871,0.02188,91572.0,91565.0,0.04599153]
[1767508272948,0.03280036,91572.0,91565.0,0.04599153]
[1767508273863,0.03280036,91572.0,91563.0,0.00010759]
[1767508273864,0.01099899,91565.0,91563.0,0.00010759]
[1767508274069,0.05919828,91569.0,91563.0,0.00010759]
[1767508274317,0.01092108,91566.0,91563.0,0.00010759]
[1767508275516,0.01092096,91567.0,91563.0,0.00010759]
[1767508275806,0.01092108,91566.0,91563.0,0.00010759]
[1767508276505,0.01092096,91567.0,91563.0,0.00010759]
[1767508276716,0.05460661,91564.0,91563.0,0.00010759]
[1767508276939,0.05460661,91564.0,91537.0,0.21849026]
[1767508276940,0.01092323,91548.0,91539.0,0.04599153]
[1767508277142,0.01092323,91548.0,91539.0,0.04609983]
[1767508277531,0.01092299,91550.0,91539.0,0.04609983]
[1767508277532,0.01092394,91542.0,91539.0,0.0001083]
[1767508277734,0.23615902,91550.0,91537.0,0.02188]
[1767508277735,0.0008907,91539.0,91537.0,0.02188]
[1767508278032,0.01092358,91545.0,91539.0,0.0008907]
[1767508278178,0.01092382,91543.0,91539.0,0.0008907]
[1767508278580,0.01092382,91543.0,91537.0,0.02198832]
[1767508279611,0.0109237,91544.0,91537.0,0.02198832]
[1767508280849,0.01092382,91543.0,91537.0,0.02198832]
[1767508281054,0.01092394,91542.0,91537.0,0.02198832]
[1767508281613,0.01092406,91541.0,91537.0,0.02198832]
[1767508281850,0.01092394,91542.0,91537.0,0.02198832]
[1767508282057,0.01092394,91542.0,91537.0,0.06797985]
[1767508282233,0.01092382,91543.0,91537.0,0.06797985]
[1767508282532,0.01092394,91542.0,91537.0,0.06797985]
[1767508283235,0.01092406,91541.0,91537.0,0.00010832]
[1767508283628,0.01092394,91542.0,91537.0,3.2e-07]
[1767508284195,0.01092406,91541.0,91537.0,3.2e-07]
[1767508284335,0.01092382,91543.0,91537.0,3.2e-07]
[1767508284523,0.06554299,91543.0,91537.0,3.2e-07]
[1767508285745,0.01092406,91541.0,91537.0,3.2e-07]
[1767508285981,0.01092418,91540.0,91537.0,3.2e-07]
[1767508286147,0.0109243,91539.0,91533.0,0.0101207]
[1767508286354,0.01092418,91540.0,91533.0,0.0101207]
[1767508286355,0.01092418,91540.0,91534.0,0.04599153]
[1767508286865,0.06554773,91537.0,91534.0,0.04599153]
[1767508287081,0.06554773,91537.0,91533.0,0.00010822]
[1767508287082,0.000782,91534.0,91533.0,0.00010822]
[1767508287276,0.00069185,91534.0,91533.0,0.00010822]
[1767508287475,0.06554816,91536.0,91533.0,0.00010822]
[1767508288290,0.06533116,91536.0,91533.0,0.00010822]
[1767508288899,0.05462448,91535.0,91533.0,2.2e-07]
[1767508292479,0.05462448,91535.0,91527.0,0.0001524]
[1767508292480,0.05462809,91528.0,91527.0,1e-08]
[1767508292757,0.05414193,91528.0,91527.0,1e-08]
[1767508297320,0.05394393,91528.0,91527.0,1e-08]
[1767508297512,0.05473051,91528.0,91527.0,1e-08]
[1767508298151,0.04473051,91528.0,91527.0,1e-08]
[1767508298349,0.01092609,91524.0,91518.0,0.0468253]
[1767508299610,0.01092561,91528.0,91518.0,0.0468253]
[1767508299963,0.12655949,91525.0,91518.0,0.0468253]
[1767508300362,0.01092609,91524.0,91518.0,0.0468253]
[1767508300662,0.01083796,91524.0,91518.0,0.0468253]
[1767508300868,0.01083796,91524.0,91514.0,0.01092728]
[1767508301282,0.13748546,91525.0,91516.0,0.0468253]
[1767508301623,0.01092633,91522.0,91516.0,0.0468253]
[1767508301826,0.01092633,91522.0,91510.0,0.02188]
[1767508301827,0.01092681,91518.0,91510.0,0.0687053]
[1767508302027,0.01092693,91517.0,91510.0,0.0687053]
[1767508302278,0.01092717,91515.0,91511.0,0.0468253]
[1767508302576,0.01092728,91514.0,91511.0,0.0468253]
[1767508302779,0.01092705,91516.0,91511.0,0.0468253]
[1767508303136,0.01092717,91515.0,91511.0,0.0468253]
[1767508303374,0.01092705,91516.0,91511.0,0.0468253]
[1767508303594,0.01092717,91515.0,91511.0,0.0468253]
[1767508303759,0.01092728,91514.0,91511.0,0.0468253]
[1767508304162,0.01092717,91515.0,91511.0,0.0468253]
[1767508304349,0.01092728,91514.0,91511.0,0.0468253]
[1767508304549,0.01092717,91515.0,91511.0,0.0468253]
[1767508305753,0.01092728,91514.0,91511.0,0.0468253]
[1767508306371,0.05463943,91509.0,91507.0,0.00046019]
[1767508306705,0.01092764,91511.0,91507.0,0.00046019]
[1767508306848,0.12655949,91509.0,91507.0,0.00046019]
[1767508307551,0.05479203,91508.0,91503.0,0.0468253]
[1767508307752,0.05479203,91508.0,91456.0,0.02186]
[1767508307753,0.01092848,91504.0,91491.0,0.05775533]
[1767508307974,0.01083856,91502.0,91497.0,0.0468253]
[1767508308185,0.01168746,91503.0,91497.0,0.0468253]
[1767508308368,0.01092848,91504.0,91497.0,0.0468253]
[1767508309369,0.0109286,91503.0,91497.0,0.0468253]
[1767508309590,0.13748737,91509.0,91497.0,0.0468253]
[1767508309591,0.06556812,91508.0,91503.0,0.00070059]
[1767508309795,0.01092824,91506.0,91503.0,0.00070059]
[1767508309974,0.01092824,91506.0,91503.0,0.04728589]
[1767508310852,0.0655697,91506.0,91503.0,0.04728589]
[1767508311610,0.05464222,91505.0,91503.0,0.0460663]
[1767508311770,0.0655697,91506.0,91491.0,0.0468253]
[1767508311771,0.01092908,91499.0,91491.0,0.0468253]
[1767508311973,0.06557354,91501.0,91491.0,0.0468253]
[1767508311974,0.01092943,91496.0,91491.0,0.0468253]
[1767508312179,0.01092932,91497.0,91491.0,0.0468253]
[1767508312381,0.0108606,91496.0,91491.0,0.0468253]
[1767508312581,0.01092932,91497.0,91491.0,0.0468253]
[1767508312786,0.01092967,91494.0,91491.0,0.0468253]
[1767508312984,0.01092967,91494.0,91491.0,0.04692772]
[1767508312985,0.06557841,91494.0,91491.0,0.04692772]
[1767508313316,0.06557841,91494.0,91491.0,0.00010242]
[1767508313492,0.05464958,91492.0,91491.0,2.39e-06]
[1767508314063,0.12655949,91493.0,91491.0,2.39e-06]
[1767508314708,0.18111878,91493.0,91491.0,2.39e-06]
[1767508314907,0.18102861,91493.0,91491.0,2.39e-06]
[1767508315614,0.05465018,91491.0,91479.0,0.01093147]
[1767508315812,0.05465018,91491.0,91474.0,0.01093206]
[1767508315813,0.02031764,91486.0,91474.0,0.01093206]
[1767508316113,0.020921,91485.0,91475.0,0.01093194]
[1767508316617,0.020921,91485.0,91476.0,0.01093182]
[1767508316811,0.020921,91485.0,91475.0,0.0468253]
[1767508317016,0.05464541,91499.0,91485.0,0.0468253]
[1767508317218,0.01092908,91499.0,91492.0,0.0468253]
[1767508317420,0.02192,91498.0,91492.0,0.0468253]
[1767508317821,0.01092932,91497.0,91492.0,0.0468253]
[1767508318118,0.01092943,91496.0,91492.0,0.0468253]
[1767508318317,0.01092932,91497.0,91492.0,0.0468253]
[1767508319290,0.0327492,91498.0,91492.0,0.0468253]
[1767508319856,0.01092932,91497.0,91492.0,0.0468253]
[1767508320424,0.02192,91496.0,91492.0,0.0468253]
[1767508321094,0.03284943,91496.0,91492.0,0.0468253]
[1767508321295,0.02192,91496.0,91492.0,0.0468253]
[1767508321541,0.12655949,91495.0,91492.0,0.0468253]
[1767508321852,0.03284943,91496.0,91492.0,0.0458263]
[1767508322195,0.01092824,91506.0,91496.0,0.000999]
[1767508322453,0.01092896,91500.0,91490.0,0.24708917]
[1767508322639,0.01092908,91499.0,91490.0,0.23615902]
[1767508322818,0.02192,91498.0,91490.0,0.04908954]
[1767508323147,0.01092896,91500.0,91490.0,0.01093015]
[1767508323346,0.02192,91499.0,91491.0,0.06001957]
[1767508323777,0.03284908,91499.0,91491.0,0.04908954]
[1767508323990,0.02192,91499.0,91491.0,0.04908954]
[1767508324755,0.02192,91499.0,91492.0,0.01092991]
[1767508324942,0.02192,91499.0,91491.0,0.06001957]
[1767508325327,0.01092884,91501.0,91491.0,0.06001957]
[1767508325548,0.02192,91500.0,91491.0,0.06001957]
[1767508325763,0.12655949,91495.0,91491.0,0.04908954]
[1767508325977,0.01093063,91486.0,91480.0,0.04888946]
[1767508326189,0.01093051,91487.0,91480.0,0.00010851]
[1767508326425,0.01093063,91486.0,91480.0,0.00010851]
[1767508326556,0.04474432,91490.0,91480.0,0.00010851]
[1767508326557,0.02192,91490.0,91485.0,0.04908954]
[1767508326756,0.02192,91497.0,91492.0,0.04908954]
[1767508326966,0.01102854,91504.0,91491.0,0.01093003]
[1767508326967,0.02192,91500.0,91497.0,0.04908954]
[1767508327204,0.02192,91500.0,91491.0,0.01093003]
[1767508327205,0.000999,91497.0,91492.0,0.06001945]
[1767508327373,0.02192,91500.0,91492.0,0.04908954]
[1767508327597,0.03284896,91500.0,91492.0,0.04908954]
[1767508327930,0.03284896,91500.0,91490.0,0.23615902]
[1767508328077,0.0109292,91498.0,91488.0,0.01093039]
[1767508328415,0.01092908,91499.0,91489.0,0.01093027]
[1767508328718,0.0109292,91498.0,91488.0,0.01093039]
[1767508328918,0.01092908,91499.0,91489.0,0.01093027]
[1767508329218,0.02192,91499.0,91489.0,0.01093027]
[1767508329918,0.02192,91499.0,91490.0,0.01093015]
[1767508330125,0.03284908,91499.0,91489.0,0.01093027]
[1767508330261,0.0109292,91498.0,91488.0,0.01093039]
[1767508330460,0.02192,91498.0,91488.0,0.01093039]
[1767508330781,0.01092932,91497.0,91487.0,0.01093051]
[1767508331450,0.000999,91487.0,91481.0,0.06002077]
[1767508331610,0.000999,91487.0,91481.0,0.01093123]
[1767508331807,0.01192951,91487.0,91480.0,0.00010851]
[1767508332008,0.01093051,91487.0,91480.0,0.00010851]
[1767508332913,0.01093039,91488.0,91480.0,0.00010851]
[1767508333125,0.05464999,91492.0,91480.0,0.01103986]
[1767508333795,0.06558066,91491.0,91480.0,0.00010851]
[1767508333979,0.03285015,91490.0,91480.0,0.01103986]
[1767508334183,0.02192,91490.0,91481.0,0.01093123]
[1767508334487,0.02192,91491.0,91489.0,0.01093027]
[1767508334693,0.01092872,91502.0,91489.0,0.01093027]
[1767508334694,0.01092872,91502.0,91490.0,0.04908954]
[1767508334932,0.01092908,91499.0,91492.0,0.04908954]
[1767508335442,0.02192,91498.0,91488.0,0.01093039]
[1767508335644,0.01092932,91497.0,91487.0,0.06002005]
[1767508335787,0.02192,91496.0,91487.0,0.04908954]
[1767508335994,0.02192,91496.0,91488.0,0.01093039]
[1767508336721,0.02192,91496.0,91488.0,0.06001993]
[1767508337197,0.02192,91496.0,91480.0,0.00010851]
[1767508337198,0.01092967,91494.0,91480.0,0.00010851]
[1767508337437,0.01092967,91494.0,91484.0,0.01093087]
[1767508337638,0.01092991,91492.0,91482.0,0.04908954]
[1767508337841,0.01087867,91494.0,91483.0,0.01093099]
[1767508338253,0.01092955,91495.0,91484.0,0.01093087]
[1767508338822,0.03284943,91496.0,91486.0,0.01093063]
[1767508339164,0.01092955,91495.0,91486.0,0.01093063]
[1767508339314,0.03284943,91496.0,91486.0,0.01093063]
[1767508339810,0.01092955,91495.0,91485.0,0.01093075]
[1767508340022,0.03284943,91496.0,91486.0,0.01093063]
[1767508340461,0.02192,91499.0,91496.0,0.01]
[1767508340638,0.02192,91499.0,91496.0,0.00142012]
[1767508342476,0.00010006,91504.0,91496.0,0.00142012]
[1767508342678,0.02192,91499.0,91496.0,0.00142012]
[1767508343260,0.02192,91499.0,91492.0,0.06001945]
[1767508343495,0.01092872,91502.0,91492.0,0.06001945]
[1767508343717,0.01092872,91502.0,91493.0,0.01092979]
[1767508343718,0.02192,91501.0,91493.0,0.01092979]
[1767508344255,0.02192,91501.0,91495.0,0.01092955]
[1767508344256,0.02049988,91501.0,91495.0,0.01092955]
[1767508344458,0.00010006,91504.0,91501.0,0.01092884]
[1767508345778,0.00010006,91504.0,91500.0,0.01092896]
[1767508346100,0.00010006,91504.0,91501.0,0.01092884]
[1767508346668,0.00010006,91504.0,91501.0,0.06001838]
[1767508347328,0.00010006,91504.0,91501.0,0.04908954]
[1767508347520,0.00010006,91504.0,91501.0,0.06001838]
[1767508350484,0.02192,91512.0,91508.0,0.010928]
[1767508350682,0.02192,91512.0,91506.0,0.06556936]
[1767508350888,0.02192,91512.0,91508.0,0.010928]
[1767508351094,0.02192,91512.0,91507.0,0.01092812]
[1767508351229,0.02182,91512.0,91506.0,0.01092824]
[1767508351662,0.02186748,91512.0,91506.0,0.01092824]
[1767508351882,0.02186748,91512.0,91504.0,0.04997062]
[1767508351883,0.010999,91506.0,91504.0,0.04997062]
[1767508352086,0.00091087,91506.0,91504.0,0.04997062]
[1767508352296,0.02186748,91512.0,91504.0,0.0608991]
[1767508352940,0.010911,91504.0,91498.0,0.04889002]
[1767508353153,0.010911,91504.0,91498.0,0.05981922]
[1767508353360,0.12655949,91510.0,91502.0,0.01092872]
[1767508353573,0.12655949,91510.0,91501.0,0.01092884]
[1767508354255,0.19212609,91510.0,91499.0,0.01092908]
[1767508354461,0.000911,91501.0,91499.0,0.01092908]
[1767508354664,0.13748725,91510.0,91500.0,0.01092896]
[1767508355107,0.13748725,91510.0,91501.0,0.01092884]
[1767508355528,0.13748725,91510.0,91500.0,0.01092896]
[1767508356376,0.000911,91500.0,91497.0,0.06557551]
[1767508356603,0.000911,91500.0,91498.0,0.05464547]
[1767508356813,0.18366567,91510.0,91498.0,0.06557467]
[1767508357019,0.13748725,91510.0,91498.0,0.06557467]
[1767508357220,0.13748725,91510.0,91500.0,0.01092896]
[1767508357666,0.13748725,91510.0,91498.0,0.06557467]
[1767508357667,0.01092788,91509.0,91498.0,0.06557467]
[1767508357869,0.010928,91508.0,91499.0,0.01092908]
[1767508358065,0.01092788,91509.0,91499.0,0.01092908]
[1767508358285,0.13748725,91510.0,91500.0,0.01092896]
[1767508360017,0.13748725,91510.0,91499.0,0.01092908]
[1767508360255,0.13748725,91510.0,91500.0,0.01092896]
[1767508360655,0.01092788,91509.0,91499.0,0.01092908]
[1767508360890,0.010928,91508.0,91498.0,0.0109292]
[1767508361096,0.010928,91508.0,91499.0,0.01092908]
[1767508361326,0.13748725,91510.0,91500.0,0.01092896]
[1767508363185,0.13748725,91510.0,91499.0,0.01092908]
[1767508363327,0.01092788,91509.0,91499.0,0.01092908]
[1767508363568,0.010928,91508.0,91498.0,0.0109292]
[1767508364064,0.010928,91508.0,91499.0,0.01092908]
[1767508364633,0.01092812,91507.0,91497.0,0.01092932]
[1767508364837,0.07902559,91515.0,91507.0,8.8e-05]
[1767508365047,0.07902559,91515.0,91507.0,4.292e-05]
[1767508365255,0.0109274,91513.0,91507.0,4.292e-05]
[1767508365395,0.02192,91514.0,91504.0,0.01088556]
[1767508365603,0.03284728,91514.0,91505.0,0.01092836]
[1767508365853,0.01092717,91515.0,91504.0,0.01088556]
[1767508366149,0.0109274,91513.0,91504.0,0.01088556]
[1767508366454,0.04617842,91511.0,91504.0,0.03738435]
[1767508366616,0.04609028,91511.0,91502.0,0.05464337]
[1767508367000,0.04609028,91511.0,91500.0,0.23662489]
[1767508367001,0.00041319,91516.0,91509.0,0.01092788]
[1767508367199,0.00041319,91516.0,91514.0,0.05463601]
[1767508367451,0.00041319,91516.0,91513.0,0.0109274]
[1767508367891,0.01092645,91521.0,91516.0,0.04889002]
[1767508368099,0.01092669,91519.0,91516.0,0.03789102]
[1767508368718,0.01092752,91512.0,91509.0,0.02192]
[1767508368936,0.01092752,91512.0,91507.0,0.00048839]
[1767508368937,0.01092776,91510.0,91507.0,0.00048839]
[1767508369563,0.06556716,91510.0,91507.0,0.00048839]